bitfinex/quotes_SOLUSD_20251117
["timestamp","ask_amount","ask_price","bid_price","bid_amount"]
[1763358822700,104.9,140.86,140.84,3.50122601]
[1763358823972,2.83122601,140.89,140.85,3.50122601]
[1763358824296,104.9,140.9,140.88,2.83122601]
[1763358824492,105.62,140.9,140.87,0.67]
[1763358824675,105.62,140.9,140.87,3.50122601]
[1763358828489,105.62,140.9,140.87,0.67]
[1763358828804,105.62,140.9,140.88,0.67]
[1763358829181,105.62,140.9,140.87,0.67]
[1763358834384,105.62,140.9,140.87,3.50122601]
[1763358834385,104.9,140.9,140.87,3.50122601]
[1763358834586,104.9,140.9,140.88,2.83122601]
[1763358834809,104.9,140.9,140.88,3.50122601]
[1763358835107,104.9,140.9,140.89,0.67]
[1763358835281,23.3712,140.92,140.89,3.50122601]
[1763358835282,22.6512,140.92,140.89,3.50122601]
[1763358835706,22.6512,140.92,140.9,0.67]
[1763358836412,23.3712,140.92,140.9,0.67]
[1763358837210,22.6512,140.92,140.9,0.67]
[1763358840299,3.55122601,140.91,140.87,2.83122601]
[1763358840501,3.55122601,140.91,140.87,3.52122601]
[1763358840700,0.68,140.9,140.87,3.52122601]
[1763358841599,0.68,140.9,140.87,0.69]
[1763358842307,3.51122601,140.9,140.85,0.69]
[1763358842613,3.51122601,140.9,140.86,2.83122601]
[1763358843608,0.68,140.9,140.87,0.69]
[1763358849033,0.68,140.9,140.87,3.52122601]
[1763358849220,22.6512,140.91,140.87,3.52122601]
[1763358849394,0.68,140.9,140.87,3.52122601]
[1763358851124,0.68,140.9,140.88,0.69]
[1763358851626,0.68,140.9,140.87,3.52122601]
[1763358852522,0.68,140.9,140.83,31.23126713]
[1763358852523,0.68,140.9,140.86,3.52122601]
[1763358853429,0.68,140.9,140.86,2.83122601]
[1763358853615,0.68,140.9,140.83,31.23126713]
[1763358853816,0.68,140.9,140.86,3.52122601]
[1763358854218,0.68,140.9,140.87,0.69]
[1763358857411,0.68,140.9,140.87,0.67]
[1763358869537,3.51122601,140.9,140.85,3.50122601]
[1763358869746,26.16242601,140.9,140.85,2.83122601]
[1763358869945,0.71,140.89,140.85,3.50122601]
[1763358870125,0.71,140.89,140.86,0.67]
[1763358878347,22.6512,140.9,140.87,1.81070158]
[1763358878642,23.3212,140.9,140.87,1.81070158]
[1763358878839,23.3212,140.9,140.87,2.50070158]
[1763358879443,23.3212,140.9,140.88,0.69]
[1763358880047,105.57,140.92,140.89,1.81070158]
[1763358880249,0.67,140.91,140.88,2.50070158]
[1763358881328,105.57,140.92,140.89,0.69]
[1763358881533,105.57,140.92,140.89,2.50070158]
[1763358884532,104.9,140.92,140.89,2.50070158]
[1763358884832,0.67,140.91,140.89,2.50070158]
[1763358887451,105.57,140.92,140.89,2.50070158]
[1763358887757,104.9,140.92,140.89,2.50070158]
[1763358887959,0.67,140.91,140.89,2.50070158]
[1763358888756,0.67,140.91,140.89,0.69]
[1763358891268,104.9,140.92,140.89,0.69]
[1763358891572,0.67,140.91,140.89,0.69]
[1763358893140,105.57,140.92,140.89,0.69]
[1763358893542,104.9,140.92,140.89,2.50070158]
[1763358893874,104.9,140.92,140.9,1.81070158]
[1763358894168,104.9,140.92,140.9,2.50070158]
[1763358894556,104.9,140.92,140.91,0.69]
[1763358898370,104.9,140.92,140.9,2.50070158]
[1763358898566,105.57,140.92,140.9,2.50070158]
[1763358898768,0.67,140.91,140.89,1.81070158]
[1763358899155,105.57,140.92,140.89,2.50070158]
[1763358900766,105.57,140.92,140.9,0.68]
[1763358901269,105.57,140.92,140.89,2.49070158]
[1763358901468,105.57,140.92,140.9,0.68]
[1763358902768,105.57,140.92,140.89,2.49070158]
[1763358902969,105.57,140.92,140.89,1.81070158]
[1763358903175,105.57,140.92,140.9,0.68]
[1763358903867,105.57,140.92,140.9,2.49070158]
[1763358904076,104.9,140.96,140.91,1.81070158]
[1763358904258,105.57,140.96,140.92,1.81070158]
[1763358904442,0.67,140.95,140.93,0.68]
[1763358904648,0.67,140.95,140.93,2.49070158]
[1763358905347,0.67,140.95,140.92,2.49070158]
[1763358909353,0.67,140.95,140.92,1.81070158]
[1763358909556,0.67,140.95,140.92,2.49070158]
[1763358910796,104.9,140.96,140.93,2.49070158]
[1763358911079,0.67,140.95,140.92,1.81070158]
[1763358911586,0.67,140.95,140.92,2.49070158]
[1763358916982,0.67,140.95,140.93,0.69]
[1763358917983,104.9,140.96,140.93,0.69]
[1763358918184,105.57,140.96,140.94,1.81070158]
[1763358918685,104.9,140.96,140.95,0.69]
[1763358920384,104.9,140.96,140.94,2.50070158]
[1763358921984,104.9,140.96,140.94,1.81070158]
[1763358922286,104.9,140.96,140.95,0.69]
[1763358922488,104.9,140.96,140.94,2.50070158]
[1763358926088,0.67,140.95,140.93,1.81070158]
[1763358926276,105.57,140.96,140.93,2.50070158]
[1763358926469,0.67,140.95,140.93,2.50070158]
[1763358927991,0.67,140.95,140.91,0.69]
[1763358928192,0.67,140.95,140.92,2.50070158]
[1763358930369,2.48070158,140.95,140.89,21.33333333]
[1763358930569,1.81070158,140.94,140.87,22.6512]
[1763358930776,1.81070158,140.94,140.89,1.81070158]
[1763358930777,2.48070158,140.94,140.89,1.81070158]
[1763358930983,0.67,140.93,140.89,0.72]
[1763358931184,2.48070158,140.93,140.89,0.72]
[1763358931475,2.48070158,140.93,140.89,2.53070158]
[1763358931672,0.67,140.92,140.89,2.53070158]
[1763358932287,0.67,140.92,140.9,0.72]
[1763358932597,0.67,140.92,140.89,2.53070158]
[1763358934774,0.67,140.92,140.89,3.54794947]
[1763358937387,0.67,140.92,140.9,3.54794947]
[1763358938703,0.67,140.92,140.9,2.82794947]
[1763358939087,0.67,140.92,140.89,2.82794947]
[1763358939607,0.67,140.92,140.88,0.72]
[1763358939608,0.67,140.92,140.88,3.54794947]
[1763358941303,0.67,140.92,140.89,0.72]
[1763358941496,0.67,140.92,140.89,3.54794947]
[1763358948520,0.67,140.92,140.89,2.82794947]
[1763358949015,3.49794947,140.92,140.86,0.72]
[1763358949204,3.49794947,140.92,140.86,3.54794947]
[1763358949205,2.82794947,140.91,140.86,3.54794947]
[1763358949408,3.49794947,140.91,140.87,2.82794947]
[1763358949592,0.67,140.9,140.87,3.54794947]
[1763358949797,0.67,140.9,140.88,2.82794947]
[1763358950296,0.67,140.92,140.89,3.54794947]
[1763358950514,2.82794947,140.94,140.89,3.54794947]
[1763358950717,0.67,140.93,140.9,3.54794947]
[1763358951699,0.67,140.93,140.9,2.82794947]
[1763358952321,0.67,140.93,140.9,3.54794947]
[1763358952999,104.9,140.95,140.86,21.33788541]
[1763358953206,0.67,140.94,140.91,3.54794947]
[1763358953408,0.67,140.94,140.91,2.82794947]
[1763358953921,0.67,140.94,140.9,3.54794947]
[1763358954623,0.67,140.94,140.91,2.82794947]
[1763358954828,0.67,140.94,140.92,2.82794947]
[1763358956610,0.67,140.94,140.91,3.54794947]
[1763358956811,104.9,140.95,140.92,2.82794947]
[1763358957123,104.9,140.95,140.92,3.54794947]
[1763358957327,104.9,140.95,140.93,0.72]
[1763358957528,105.57,140.95,140.93,0.72]
[1763358957828,0.67,140.94,140.91,2.82794947]
[1763358958033,0.67,140.94,140.91,3.54794947]
[1763358958905,0.67,140.94,140.91,0.72]
[1763358959107,0.67,140.94,140.91,3.54794947]
[1763358960241,0.67,140.94,140.92,0.72]
[1763358960450,105.56,140.95,140.92,0.72]
[1763358960608,0.66,140.94,140.92,0.72]
[1763358960809,105.56,140.95,140.92,0.72]
[1763358961114,104.9,140.95,140.92,0.72]
[1763358961335,0.66,140.94,140.92,0.72]
[1763358961532,104.9,140.95,140.92,0.72]
[1763358961832,0.66,140.99,140.94,2.82794947]
[1763358962012,0.66,140.98,140.95,2.82794947]
[1763358962331,0.66,140.98,140.94,2.82794947]
[1763358962722,0.66,140.98,140.94,3.51794947]
[1763358965136,0.66,140.98,140.95,2.82794947]
[1763358965660,0.66,140.98,140.95,3.51794947]
[1763358968556,0.66,140.98,140.95,2.82794947]
[1763358969056,0.66,140.98,140.95,3.51794947]
[1763358970552,0.66,140.98,140.95,2.82794947]
[1763358971955,0.66,140.98,140.95,3.51794947]
[1763358972451,0.66,140.98,140.92,2.82794947]
[1763358972452,2.82794947,140.97,140.92,2.82794947]
[1763358972956,3.48794947,140.96,140.92,3.51794947]
[1763358973456,0.66,140.95,140.92,3.51794947]
[1763358977039,0.66,140.95,140.91,3.54794947]
[1763358978565,0.66,140.95,140.91,2.82794947]
[1763358978748,0.66,140.95,140.89,43.98605047]
[1763358978749,0.67,140.96,140.92,3.54794947]
[1763358978951,0.67,140.96,140.93,2.82794947]
[1763358979650,0.67,140.96,140.92,3.54794947]
[1763358979865,0.67,140.96,140.92,2.82794947]
[1763358980061,0.67,140.96,140.92,3.54794947]
[1763358980242,104.9,140.97,140.93,0.72]
[1763358980565,0.67,140.98,140.94,2.82794947]
[1763358980941,0.67,140.98,140.95,0.72]
[1763358985344,2.82794947,140.99,140.95,3.54794947]
[1763358985550,25.67914947,141.0,140.96,2.82794947]
[1763358985764,0.67,140.98,140.96,2.82794947]
[1763358986066,0.67,140.98,140.95,3.54794947]
[1763358986539,25.67914947,141.0,140.95,3.54794947]
[1763358986862,0.67,140.99,140.96,0.72]
[1763358987066,0.67,140.99,140.95,3.54794947]
[1763358987762,0.67,140.99,140.95,2.82794947]
[1763358988065,0.67,140.99,140.95,3.54794947]
[1763358989344,3.49794947,140.99,140.95,3.54794947]
[1763358989752,0.67,140.98,140.95,3.54794947]
[1763358990071,0.67,140.98,140.95,0.72]
[1763358991073,0.67,140.98,140.95,3.54794947]
[1763358994072,0.67,140.98,140.95,0.72]
[1763358994771,0.67,140.98,140.95,2.52847003]
[1763358996158,0.67,140.98,140.96,0.68]
[1763358996459,0.67,140.98,140.95,1.80847003]
[1763358996660,0.67,140.98,140.95,2.48847003]
[1763358996878,0.7,140.99,140.96,2.48847003]
[1763358998888,0.2,141.0,140.97,0.68]
[1763358999111,0.7,140.99,140.97,0.68]
[1763359002383,0.7,140.99,140.96,2.48847003]
[1763359002585,0.7,140.99,140.97,0.68]
[1763359005490,0.7,140.99,140.96,0.68]
[1763359005692,0.7,140.99,140.95,1.80847003]
[1763359005867,0.7,140.99,140.96,0.68]
[1763359006194,0.7,140.99,140.96,2.48847003]
[1763359010795,2.50847003,140.99,140.94,0.68]
[1763359011090,0.2,141.0,140.94,0.68]
[1763359011091,2.50847003,140.98,140.94,2.48847003]
[1763359011279,2.50847003,140.98,140.95,0.68]
[1763359011472,0.7,140.98,140.95,0.68]
[1763359011673,1.80847003,140.99,140.95,0.68]
[1763359011888,0.7,140.97,140.95,0.68]
[1763359012472,0.7,140.97,140.93,2.48847003]
[1763359012686,0.7,140.97,140.94,0.68]
[1763359015493,0.7,140.97,140.94,2.48847003]
[1763359021402,0.7,140.97,140.94,1.80847003]
[1763359021587,1.80847003,140.99,140.95,0.71]
[1763359021797,0.66,140.99,140.95,2.51847003]
[1763359021986,0.66,140.98,140.95,2.51847003]
[1763359022187,0.66,140.98,140.96,0.71]
[1763359023094,0.86,141.0,140.96,2.51847003]
[1763359023505,0.2,141.01,140.99,1.80847003]
[1763359023684,0.2,141.01,140.99,22.6512]
[1763359024006,0.2,141.01,141.0,2.51847003]
[1763359024796,0.2,141.01,141.0,5.36109519]
[1763359029511,0.2,141.01,141.0,12.59497531]
[1763359036921,0.2,141.01,141.0,22.383803]
[1763359038811,0.2,141.01,141.0,27.30229519]
[1763359039020,0.2,141.01,141.0,37.77112288]
[1763359039238,0.2,141.01,141.0,45.005003]
[1763359045144,0.2,141.01,141.0,35.96265285]
[1763359045362,0.2,141.01,141.0,45.005003]
[1763359056946,0.2,141.01,141.0,41.60693469]
[1763359059448,0.2,141.01,141.0,31.818107]
[1763359068552,0.88,141.01,141.0,31.138107]
[1763359068751,0.88,141.01,141.0,25.47334092]
[1763359068931,0.88,141.01,141.0,2.82214092]
[1763359077562,0.2,141.01,141.0,38.77430953]
[1763359078061,0.2,141.01,141.0,41.61632878]
[1763359079675,0.2,141.01,141.0,35.28204694]
[1763359079876,0.2,141.01,141.0,41.61632878]
[1763359091079,0.2,141.01,141.0,40.92632878]
[1763359091452,0.2,141.01,141.0,41.64632878]
[1763359091873,0.88,141.01,141.0,2.82214092]
[1763359095074,0.2,141.01,141.0,25.47334092]
[1763359095480,0.88,141.01,141.0,25.47334092]
[1763359095776,0.88,141.01,140.98,24.50765948]
[1763359095964,0.2,141.01,141.0,2.82214092]
[1763359096563,0.88,141.01,140.98,21.66503432]
[1763359096768,0.88,141.01,141.0,2.82214092]
[1763359096963,0.2,141.01,141.0,2.82214092]
[1763359097478,0.87,141.01,141.0,2.82214092]
[1763359100267,0.87,141.01,140.97,29.38118437]
[1763359100472,0.87,141.01,140.99,25.47334092]
[1763359100473,0.67,141.0,140.99,25.47334092]
[1763359105880,0.67,141.0,140.97,3.70784345]
[1763359106059,0.67,141.0,140.99,2.82214092]
[1763359109387,0.67,141.0,140.97,2.82214092]
[1763359110385,3.49214092,141.0,140.94,26.36039091]
[1763359110589,2.82214092,140.99,140.94,29.18253183]
[1763359110769,0.7,140.99,140.95,2.82214092]
[1763359110971,0.7,140.98,140.95,2.82214092]
[1763359111167,3.52214092,140.98,140.91,17.04]
[1763359111367,3.52214092,140.98,140.93,2.82214092]
[1763359111593,0.7,140.97,140.93,2.82214092]
[1763359113082,0.7,140.97,140.92,2.82214092]
[1763359113083,3.52214092,140.97,140.92,2.82214092]
[1763359113690,0.7,140.96,140.92,2.82214092]
[1763359116782,0.7,140.96,140.92,1.80909599]
[1763359117181,2.50909599,140.96,140.92,1.80909599]
[1763359117579,0.7,140.95,140.92,1.80909599]
[1763359119673,0.7,140.95,140.93,1.80909599]
[1763359120176,104.9,140.99,140.93,0.72]
[1763359120377,0.7,140.95,140.94,1.80909599]
[1763359120592,0.7,140.95,140.93,1.80909599]
[1763359124383,0.7,140.95,140.91,0.72]
[1763359124585,0.7,140.95,140.93,1.80909599]
[1763359127276,0.7,140.95,140.94,1.80909599]
[1763359127692,0.7,140.95,140.93,1.80909599]
[1763359128102,0.7,140.95,140.91,1.80909599]
[1763359128318,0.7,140.95,140.9,26.36149444]
[1763359128319,2.50909599,140.95,140.9,3.71029444]
[1763359128482,107.40909599,140.95,140.9,1.80909599]
[1763359128676,2.50909599,140.94,140.9,1.80909599]
[1763359129174,0.7,140.93,140.9,1.80909599]
[1763359132603,2.50909599,140.93,140.88,1.80909599]
[1763359132819,1.80909599,140.92,140.87,1.80909599]
[1763359133100,2.50909599,140.92,140.87,1.80909599]
[1763359133302,0.7,140.91,140.87,1.80909599]
[1763359133505,0.7,140.91,140.86,22.6512]
[1763359133506,2.50909599,140.91,140.86,24.46029599]
[1763359133980,0.7,140.9,140.86,24.46029599]
[1763359134176,0.7,140.9,140.87,1.80909599]
[1763359135485,0.7,140.9,140.86,1.80909599]
[1763359136281,0.7,140.9,140.86,2.52909599]
[1763359137097,0.7,140.9,140.87,1.80909599]
[1763359138405,0.7,140.9,140.87,1.30909599]
[1763359141093,0.7,140.9,140.86,1.80909599]
[1763359141291,2.50909599,140.9,140.86,1.80909599]
[1763359141503,2.50909599,140.9,140.85,1.90909599]
[1763359141707,1.80909599,140.88,140.85,0.1]
[1763359142215,2.50909599,140.87,140.85,0.1]
[1763359142423,0.7,140.87,140.85,0.1]
[1763359142595,0.7,140.86,140.85,0.1]
[1763359143894,0.7,140.87,140.85,0.1]
[1763359144096,104.9,140.91,140.85,0.1]
[1763359144097,104.9,140.91,140.86,1.80909599]
[1763359144310,0.7,140.9,140.88,1.80909599]
[1763359144920,0.7,140.93,140.89,2.48909599]
[1763359145096,0.7,140.92,140.9,1.80909599]
[1763359146926,0.7,140.92,140.89,1.80909599]
[1763359148207,0.7,140.92,140.88,7.68038912]
[1763359148428,0.7,140.92,140.89,1.80909599]
[1763359148634,0.7,140.92,140.9,1.80909599]
[1763359148795,0.7,140.92,140.91,1.80909599]
[1763359148995,0.7,140.92,140.9,1.80909599]
[1763359152095,0.7,140.92,140.89,0.68]
[1763359152096,0.7,140.92,140.86,22.6512]
[1763359152299,0.7,140.92,140.89,1.80909599]
[1763359152620,0.7,140.92,140.88,0.68]
[1763359152825,0.7,140.92,140.89,1.80909599]
[1763359153437,0.7,140.92,140.9,1.80909599]
[1763359153816,0.7,140.92,140.88,1.80909599]
[1763359154112,0.7,140.92,140.85,0.78]
[1763359154113,1.80909599,140.9,140.85,0.78]
[1763359154318,0.7,140.89,140.85,2.58909599]
[1763359155421,1.80909599,140.88,140.85,0.1]
[1763359155833,0.7,140.87,140.85,0.1]
[1763359158026,2.50909599,140.87,140.85,0.1]
[1763359158532,2.49909599,140.86,140.85,0.1]
[1763359160729,0.69,140.86,140.85,0.1]
[1763359160930,2.49909599,140.86,140.85,0.1]
[1763359164250,107.39909599,140.86,140.85,0.1]
[1763359174925,105.59,140.86,140.85,0.1]
[1763359175156,104.9,140.86,140.85,0.78]
[1763359176040,104.9,140.87,140.85,0.78]
[1763359176243,105.62,140.87,140.85,0.1]
[1763359177252,105.62,140.87,140.85,0.78]
[1763359177632,104.9,140.87,140.85,0.78]
[1763359177834,105.62,140.87,140.85,0.78]
[1763359178365,25.18029599,140.86,140.8,0.1]
[1763359178559,1.80909599,140.81,140.8,0.1]
[1763359178739,22.6512,140.83,140.8,0.1]
[1763359178945,2.83354972,140.81,140.8,0.1]
[1763359179243,25.48474972,140.81,140.8,0.1]
[1763359179447,35.99357741,140.81,140.8,0.1]
[1763359181869,33.16002769,140.81,140.8,0.1]
[1763359182034,2.83354972,140.82,140.8,0.1]
[1763359182436,3.55354972,140.82,140.8,0.1]
[1763359182846,2.83354972,140.83,140.8,0.78]
[1763359183048,10.50882769,140.84,140.8,0.78]
[1763359183257,3.55354972,140.83,140.8,0.78]
[1763359184162,26.20474972,140.83,140.8,0.78]
[1763359184742,0.72,140.82,140.8,0.1]
[1763359185539,25.48474972,140.83,140.8,0.78]
[1763359185739,26.20474972,140.83,140.8,0.78]
[1763359187260,3.55354972,140.82,140.8,0.1]
[1763359187451,2.83354972,140.81,140.8,0.1]
[1763359187933,2.83354972,140.82,140.8,0.1]
[1763359188138,3.55354972,140.82,140.8,0.1]
[1763359188960,22.6512,140.83,140.8,0.78]
[1763359189165,25.48474972,140.83,140.8,0.78]
[1763359189938,0.72,140.85,140.8,0.78]
[1763359190140,104.9,140.84,140.8,3.61354972]
[1763359190562,108.45354972,140.84,140.81,0.68]
[1763359191451,104.9,140.84,140.81,0.68]
[1763359191640,130.38474972,140.85,140.81,0.68]
[1763359191844,131.10474972,140.85,140.81,0.68]
[1763359192544,127.5512,140.85,140.81,3.51354972]
[1763359192773,104.9,140.85,140.82,3.51354972]
[1763359193087,104.9,140.85,140.83,0.68]
[1763359193379,2.83354972,140.86,140.83,0.68]
[1763359193584,3.55354972,140.86,140.83,0.68]
[1763359193785,22.6512,140.88,140.81,2.83354972]
[1763359193786,118.24237741,140.85,140.81,0.68]
[1763359193982,108.45354972,140.85,140.81,3.51354972]
[1763359194158,2.83354972,140.84,140.81,0.68]
[1763359194478,2.83354972,140.84,140.8,2.93354972]
[1763359194642,2.83354972,140.84,140.82,0.68]
[1763359194848,108.45354972,140.85,140.82,0.68]
[1763359195367,104.9,140.85,140.82,0.68]
[1763359195671,104.9,140.85,140.83,2.83354972]
[1763359196157,104.9,140.85,140.84,0.68]
[1763359198782,104.9,140.85,140.84,3.51354972]
[1763359199159,104.9,140.85,140.84,0.68]
[1763359199355,104.9,140.85,140.84,3.51354972]
[1763359200261,108.45354972,140.89,140.84,3.51354972]
[1763359200467,108.45354972,140.89,140.85,0.72]
[1763359200690,104.9,140.89,140.85,3.55354972]
[1763359200868,104.9,140.89,140.86,2.83354972]
[1763359201177,104.9,140.89,140.87,0.72]
[1763359201565,0.7,140.92,140.87,3.55354972]
[1763359201771,2.83354972,140.88,140.8,2.94586105]
[1763359202073,2.83354972,140.86,140.81,3.55354972]
[1763359202272,3.53354972,140.87,140.82,3.55354972]
[1763359202665,3.53354972,140.87,140.83,0.72]
[1763359203453,2.83354972,140.87,140.83,0.72]
[1763359203656,3.53354972,140.86,140.83,0.72]
[1763359204398,0.7,140.87,140.83,0.72]
[1763359204558,25.48474972,140.88,140.83,3.55354972]
[1763359204759,22.6512,140.88,140.84,2.83354972]
[1763359204958,3.53354972,140.89,140.85,0.72]
[1763359205381,2.83354972,140.89,140.85,0.72]
[1763359205996,3.53354972,140.89,140.85,0.72]
[1763359206911,2.83354972,140.86,140.82,0.72]
[1763359207114,2.83354972,140.85,140.82,0.72]
[1763359207981,3.53354972,140.85,140.82,0.72]
[1763359208182,2.83354972,140.86,140.82,0.72]
[1763359208378,128.2512,140.88,140.82,3.55354972]
[1763359208581,2.83354972,140.87,140.82,3.55354972]
[1763359208811,3.53354972,140.87,140.83,0.72]
[1763359209479,127.5512,140.88,140.83,3.55354972]
[1763359209806,131.08474972,140.88,140.83,3.55354972]
[1763359210013,128.2512,140.88,140.84,0.72]
[1763359210312,131.08474972,140.88,140.84,0.72]
[1763359210491,127.5512,140.88,140.84,3.55354972]
[1763359210676,104.9,140.88,140.84,3.55354972]
[1763359210877,104.9,140.88,140.85,0.72]
[1763359211612,26.18474972,140.9,140.86,2.83354972]
[1763359211781,26.18474972,140.9,140.87,0.72]
[1763359212106,0.7,140.9,140.87,0.72]
[1763359212479,3.53354972,140.9,140.85,2.83354972]
[1763359212709,0.7,140.89,140.86,0.72]
[1763359213218,0.7,140.89,140.81,32.44002769]
[1763359213219,2.83354972,140.88,140.83,2.83354972]
[1763359213401,2.83354972,140.88,140.83,3.55354972]
[1763359213601,0.7,140.87,140.84,0.72]
[1763359213910,3.53354972,140.88,140.84,0.72]
[1763359214415,0.7,140.87,140.84,0.72]
[1763359215891,2.83354972,140.88,140.84,0.72]
[1763359216087,3.53354972,140.88,140.84,0.72]
[1763359216616,0.7,140.88,140.84,3.55354972]
[1763359216988,0.7,140.88,140.85,0.72]
[1763359218109,107.73354972,140.89,140.85,0.72]
[1763359218306,108.42354972,140.89,140.85,0.72]
[1763359219990,107.73354972,140.89,140.85,0.72]
[1763359220195,104.9,140.89,140.85,3.55354972]
[1763359220586,104.9,140.89,140.86,0.67]
[1763359220889,104.9,140.89,140.86,3.50354972]
[1763359221285,104.9,140.89,140.87,0.67]
[1763359223301,104.9,140.89,140.87,3.50354972]
[1763359223499,104.9,140.89,140.88,2.83354972]
[1763359223817,104.9,140.89,140.88,3.50354972]
[1763359226715,0.69,140.93,140.88,3.50354972]
[1763359226923,105.59,140.93,140.89,3.50354972]
[1763359227300,105.59,140.93,140.89,2.83354972]
[1763359227615,105.59,140.93,140.9,0.67]
[1763359228717,3.52354972,140.92,140.87,3.50354972]
[1763359229203,0.69,140.91,140.88,0.67]
[1763359229605,2.83354972,140.92,140.88,0.67]
[1763359229812,0.69,140.91,140.88,0.67]
[1763359230018,0.69,140.91,140.87,3.50354972]
[1763359230397,0.69,140.91,140.87,0.67]
[1763359230398,3.52354972,140.91,140.87,0.67]
[1763359230809,0.66,140.9,140.87,0.67]
[1763359231944,0.66,140.9,140.87,3.50354972]
[1763359232622,0.66,140.9,140.86,2.83354972]
[1763359233825,0.66,140.9,140.86,3.53354972]
[1763359234934,105.56,140.92,140.87,3.53354972]
[1763359235126,105.56,140.92,140.88,2.83354972]
[1763359235332,0.66,140.91,140.88,3.53354972]
[1763359236607,104.9,140.92,140.89,3.53354972]
[1763359237011,104.9,140.92,140.9,3.53354972]
[1763359237633,104.9,140.92,140.9,2.83354972]
[1763359237938,3.49354972,140.96,140.91,3.53354972]
[1763359238141,0.66,140.95,140.92,0.7]
[1763359240042,0.66,140.95,140.91,2.83354972]
[1763359240238,0.66,140.95,140.91,3.53354972]
[1763359240629,0.66,140.95,140.91,2.83354972]
[1763359240829,0.66,140.95,140.92,0.7]
[1763359241915,2.46943379,140.95,140.88,0.7]
[1763359242244,1.80943379,140.94,140.9,1.80943379]
[1763359242443,2.46943379,140.94,140.9,1.80943379]
[1763359242625,0.66,140.93,140.9,2.50943379]
[1763359247548,106.70943379,140.95,140.9,1.80943379]
[1763359247750,106.70943379,140.95,140.91,2.50943379]
[1763359247930,104.9,140.94,140.91,2.50943379]
[1763359248129,105.56,140.94,140.91,2.50943379]
[1763359249650,105.56,140.94,140.91,0.7]
[1763359250548,104.9,140.94,140.92,0.7]
[1763359252665,104.9,140.94,140.92,2.50943379]
[1763359252834,0.66,140.97,140.93,1.80943379]
[1763359253033,0.66,140.97,140.94,0.7]
[1763359254042,106.70943379,140.98,140.94,0.7]
[1763359254043,107.36943379,140.98,140.94,0.7]
[1763359254243,0.66,140.97,140.94,0.7]
[1763359254958,105.56,140.98,140.94,2.50943379]
[1763359255651,105.56,140.98,140.94,1.80943379]
[1763359255855,105.56,140.98,140.95,0.7]
[1763359261347,104.9,140.98,140.95,2.50943379]
[1763359261556,104.9,140.98,140.97,1.80943379]
[1763359261761,104.9,140.98,140.97,2.46943379]
[1763359262352,0.2,141.01,140.97,2.46943379]
[1763359262560,0.2,141.01,140.99,1.80943379]
[1763359262954,0.2,141.01,140.99,2.46943379]
[1763359263161,0.2,141.01,141.0,0.66]
[1763359264374,0.2,141.01,141.0,2.46943379]
[1763359264742,0.2,141.01,141.0,25.12063379]
[1763359265144,0.2,141.01,140.98,0.66]
[1763359265369,0.2,141.01,140.99,1.80943379]
[1763359265751,0.2,141.01,140.99,2.46943379]
[1763359266286,0.87,141.01,140.98,0.66]
[1763359266442,0.87,141.01,140.98,2.46943379]
[1763359266648,0.2,141.01,140.98,2.46943379]
[1763359267078,0.67,141.0,140.96,2.46943379]